bitfinex/quotes_ETHUSD_20251201
["timestamp","ask_amount","ask_price","bid_price","bid_amount"]
[1764608896810,35.74468844,2745.6,2745.5,0.001]
[1764608897008,37.66850081,2745.6,2745.5,0.001]
[1764608897212,36.47950081,2745.6,2745.5,0.001]
[1764608897740,22.09655281,2745.6,2745.5,0.001]
[1764608897908,36.82618181,2745.6,2745.5,0.001]
[1764608898733,36.82618181,2745.6,2744.3,0.001]
[1764608898734,0.0997041,2744.5,2744.3,0.001]
[1764608898909,8.60707304,2744.4,2744.3,0.001]
[1764608899112,10.5326283,2744.4,2744.3,0.001]
[1764608899945,14.2093933,2744.4,2744.3,0.001]
[1764608900150,17.853177,2744.4,2744.3,0.001]
[1764608901022,21.038113,2744.4,2744.3,0.001]
[1764608902014,28.30369,2744.4,2744.3,0.001]
[1764608904054,6.53526,2744.4,2744.3,0.001]
[1764608904259,19.666704,2744.4,2744.3,0.001]
[1764608904613,19.095104,2744.4,2744.3,0.001]
[1764608904818,18.509104,2744.4,2744.3,0.001]
[1764608905029,20.717268,2744.4,2744.3,0.001]
[1764608905231,18.373248,2744.4,2744.3,0.001]
[1764608905552,3.43584615,2744.4,2744.3,0.001]
[1764608905744,7.66562985,2744.4,2744.3,0.001]
[1764608905914,2.51315204,2744.4,2744.3,0.001]
[1764608906114,0.36331704,2744.6,2744.3,0.001]
[1764608906519,0.586,2744.5,2744.3,0.001]
[1764608908120,0.83121704,2744.4,2744.3,0.001]
[1764608908471,0.78540821,2744.6,2744.4,0.4838]
[1764608908622,0.586,2744.6,2744.4,0.4838]
[1764608909718,1.13109811,2745.1,2744.5,0.9185]
[1764608909719,0.586,2744.9,2744.5,0.9185]
[1764608909936,0.19940821,2745.3,2745.0,0.4784]
[1764608910138,0.586,2745.2,2744.6,0.4968]
[1764608910319,0.19940821,2744.9,2744.4,0.4968]
[1764608910933,0.586,2745.2,2744.8,0.4784]
[1764608911134,0.0997041,2745.1,2744.8,0.4784]
[1764608911543,0.36331704,2745.0,2744.5,0.41417163]
[1764608911745,0.0997041,2744.8,2744.4,0.4968]
[1764608912055,0.0997041,2744.8,2744.5,0.4968]
[1764608912056,7.036,2744.8,2744.5,0.4968]
[1764608912428,8.10291704,2744.8,2744.3,0.001]
[1764608912821,0.36331704,2744.6,2744.3,0.001]
[1764608913222,0.36331704,2744.6,2744.3,0.4978]
[1764608914555,1.41129821,2744.7,2744.4,0.4968]
[1764608915959,0.57162788,2745.1,2744.6,0.4784]
[1764608916263,6.45,2745.6,2745.0,0.4784]
[1764608916460,10.716,2746.0,2745.5,0.6725]
[1764608916461,0.72559411,2745.9,2745.5,0.6725]
[1764608916829,0.72559411,2745.9,2745.5,1.1693]
[1764608917030,7.036,2746.0,2745.5,1.1693]
[1764608917553,14.767463,2745.8,2745.1,3.83695454]
[1764608917751,0.36331704,2745.6,2745.1,3.83695454]
[1764608918157,0.36331704,2745.6,2745.1,7.47980908]
[1764608918454,0.6575,2745.9,2745.5,0.4784]
[1764608918455,0.36331704,2745.9,2745.5,0.4784]
[1764608918834,0.1836,2745.9,2745.1,0.1941]
[1764608919038,0.0997041,2745.6,2745.2,3.64270501]
[1764608919346,0.0997041,2745.6,2745.2,7.28542685]
[1764608919558,0.0997041,2745.6,2745.3,0.4968]
[1764608920266,0.19940821,2745.8,2745.5,0.4784]
[1764608920857,0.19940821,2745.8,2745.5,4.12067478]
[1764608921368,6.64940821,2745.8,2745.5,0.4784]
[1764608921541,6.64940821,2745.8,2745.5,4.61750999]
[1764608921942,6.45,2745.8,2745.5,4.61750999]
[1764608922244,0.002,2745.6,2745.5,4.61750999]
[1764608923238,0.002,2745.6,2745.5,5.44350649]
[1764608926475,0.002,2745.6,2745.5,4.61750999]
[1764608926682,0.002,2745.6,2745.5,0.9752]
[1764608926859,0.002,2745.6,2745.5,4.6175238]
[1764608927248,0.002,2745.6,2745.5,4.1207238]
[1764608927450,0.002,2745.6,2745.5,4.6175238]
[1764608929672,0.002,2745.6,2745.5,0.9752]
[1764608929875,0.002,2745.6,2745.5,4.6175238]
[1764608930970,0.002,2745.6,2745.2,3.64262548]
[1764608931477,0.002,2745.6,2745.2,0.4968]
[1764608932578,0.002,2745.6,2745.5,0.4784]
[1764608933075,0.002,2745.6,2745.5,4.6175238]
[1764608934859,0.002,2745.6,2745.5,0.4784]
[1764608935059,0.002,2745.6,2745.4,7.28490484]
[1764608935383,0.002,2745.6,2745.5,0.4784]
[1764608936980,0.002,2745.6,2745.5,4.1207238]
[1764608937202,0.002,2745.6,2745.5,4.6175238]
[1764608938061,0.002,2745.6,2745.2,7.28544368]
[1764608938388,0.002,2745.6,2745.5,0.4784]
[1764608938952,0.002,2745.6,2745.5,4.1207238]
[1764608940188,0.002,2745.6,2745.5,4.1207238]
[1764608940684,0.002,2745.6,2745.1,0.1941]
[1764608940685,0.4538,2745.6,2745.1,0.1941]
[1764608940895,0.4538,2745.6,2745.1,4.32669387]
[1764608941195,0.4538,2745.6,2744.5,3.6436474]
[1764608941196,0.19940821,2745.1,2744.4,3.6447494]
[1764608941358,0.002,2745.6,2744.4,4.1345494]
[1764608941560,0.587,2745.6,2745.0,0.4688]
[1764608941761,0.587,2745.6,2745.3,0.001]
[1764608941961,0.4518,2745.4,2745.3,0.001]
[1764608942195,0.6487041,2745.4,2745.3,0.001]
[1764608942496,0.91231704,2745.4,2745.3,0.001]
[1764608942668,1.49903213,2745.4,2745.3,0.001]
[1764608943356,1.03851509,2745.4,2745.3,0.001]
[1764608943563,5.11645879,2745.4,2745.3,0.001]
[1764608943759,1.47400232,2745.4,2745.3,0.001]
[1764608943977,5.11645879,2745.4,2745.3,0.001]
[1764608944671,0.72559411,2745.4,2745.3,0.001]
[1764608945273,0.88179821,2745.4,2745.3,0.001]
[1764608946304,1.56613803,2745.4,2745.3,0.001]
[1764608946472,0.92133393,2745.4,2745.3,0.001]
[1764608946671,1.95539821,2745.4,2745.3,0.001]
[1764608947074,6.00335868,2745.4,2745.3,0.001]
[1764608947376,10.73898468,2745.4,2745.3,0.001]
[1764608948304,26.87127859,2745.4,2745.3,0.001]
[1764608948595,24.05582359,2745.4,2745.3,0.001]
[1764608948795,22.52728259,2745.4,2745.3,0.001]
[1764608948989,19.26928259,2745.4,2745.3,0.001]
[1764608949377,21.05330359,2745.4,2745.3,0.001]
[1764608950392,22.94595534,2745.4,2745.3,0.001]
[1764608951380,27.15399534,2745.4,2745.3,0.001]
[1764608951580,23.06827334,2745.4,2745.3,0.001]
[1764608952411,38.28291134,2745.4,2745.3,0.001]
[1764608952704,38.25376745,2745.4,2745.3,0.001]
[1764608952912,0.36331704,2744.5,2744.4,0.001]
[1764608953090,1.00481704,2744.5,2744.4,0.001]
[1764608954907,1.46963742,2744.5,2744.4,0.001]
[1764608955105,23.33393497,2744.5,2744.4,0.001]
[1764608955408,23.68885808,2744.5,2744.4,0.001]
[1764608956179,31.29359608,2744.5,2744.4,0.001]
[1764608956380,31.34359608,2744.5,2744.4,0.001]
[1764608956681,31.70879608,2744.5,2744.4,0.001]
[1764608956979,31.34359608,2744.5,2744.3,0.001]
[1764608957213,26.56984515,2744.2,2744.1,0.001]
[1764608957415,26.62634515,2744.2,2744.1,0.001]
[1764608957575,27.11494515,2744.2,2744.1,0.001]
[1764608957776,26.15652811,2744.1,2744.0,0.001]
[1764608957981,27.65434515,2744.1,2744.0,0.001]
[1764608958230,27.65434515,2744.1,2743.0,0.001]
[1764608958231,5.02409811,2743.8,2743.0,0.001]
[1764608958527,16.36115706,2743.8,2743.0,0.001]
[1764608958680,20.10643756,2743.8,2743.0,0.001]
[1764608958879,37.44586756,2743.8,2743.0,0.001]
[1764608959231,0.36331704,2744.4,2743.7,0.4698]
[1764608959379,0.585,2744.4,2744.3,0.4688]
[1764608959584,0.585,2744.4,2743.7,0.4908]
[1764608959816,0.36331704,2744.2,2743.7,0.4908]
[1764608960014,0.36331704,2744.2,2743.7,0.001]
[1764608960189,0.585,2744.4,2743.7,0.001]
[1764608960391,0.36331704,2744.0,2743.7,0.001]
[1764608960595,0.0997041,2743.8,2743.7,0.001]
[1764608963433,4.69262162,2744.3,2743.7,0.9596]
[1764608963434,0.72559411,2744.3,2743.7,0.9596]
[1764608963588,0.36331704,2744.6,2744.2,0.6564]
[1764608963919,0.94931704,2744.6,2744.2,0.6564]
[1764608964114,0.94931704,2744.6,2744.3,0.4898]
[1764608964482,0.94931704,2744.6,2744.2,0.1876]
[1764608964711,0.36331704,2744.4,2744.2,0.1876]
[1764608965623,0.586,2744.6,2744.2,0.1876]
[1764608965624,0.586,2744.7,2744.3,0.4688]
[1764608966082,0.586,2744.7,2744.4,0.4898]
[1764608967204,0.586,2744.7,2744.6,0.4688]
[1764608967589,0.586,2744.7,2744.4,0.4898]
[1764608967801,0.586,2744.7,2744.6,0.4688]
[1764608968922,0.586,2744.7,2744.4,0.4898]
[1764608969117,0.0997041,2744.2,2743.7,0.001]
[1764608969288,0.36331704,2744.0,2743.7,0.001]
[1764608970320,0.0997041,2744.0,2743.7,0.001]
[1764608970839,0.0997041,2744.0,2743.9,0.485]
[1764608971190,0.405504,2743.9,2743.7,0.001]
[1764608971392,20.11783321,2743.8,2743.7,0.001]
[1764608971621,24.83252703,2743.8,2743.7,0.001]
[1764608971888,1.13109811,2743.7,2743.6,0.001]
[1764608972121,21.65344821,2743.7,2743.6,0.001]
[1764608972308,21.65344821,2743.7,2742.5,0.001]
[1764608972309,21.18243,2743.6,2742.5,0.001]
[1764608972530,34.34730726,2743.6,2742.5,0.001]
[1764608973595,28.71179844,2743.6,2742.5,0.001]
[1764608973901,28.71179844,2743.6,2742.5,3.64729575]
[1764608973902,22.79899344,2743.6,2742.5,3.64729575]
[1764608974109,12.85945153,2743.6,2742.7,0.4575]
[1764608974307,17.89490853,2743.6,2742.7,0.4575]
[1764608974893,17.41480853,2743.6,2742.7,0.4575]
[1764608975224,6.87018153,2743.6,2742.7,0.4575]
[1764608975400,19.07949853,2743.6,2742.7,0.4575]
[1764608975721,15.80715342,2743.6,2743.1,0.1858]
[1764608976134,16.53274753,2743.6,2743.1,0.1858]
[1764608976295,16.53274753,2743.6,2743.0,0.4575]
[1764608976296,16.98444753,2743.6,2743.0,0.001]
[1764608976627,20.53119353,2743.6,2743.0,0.001]
[1764608977417,24.73518153,2743.6,2743.0,0.001]
[1764608978401,24.71015653,2743.6,2743.0,0.001]
[1764608979026,35.23569844,2743.6,2743.0,0.001]
[1764608979434,38.57815344,2743.6,2743.0,0.001]
[1764608979615,37.66535944,2743.6,2743.0,0.001]
[1764608979820,37.35752344,2743.6,2743.0,0.001]
[1764608980439,33.55166861,2743.6,2743.0,0.001]
[1764608981534,39.15007461,2743.6,2743.0,0.001]
[1764608982036,28.035934,2743.3,2743.0,0.001]
[1764608982337,32.86038992,2743.3,2743.0,0.001]
[1764608982645,43.46153773,2743.3,2743.0,0.001]
[1764608983458,36.88683573,2743.3,2743.0,0.001]
[1764608983763,40.21340073,2743.3,2743.0,0.001]
[1764608983970,40.81382093,2743.3,2743.0,0.001]
[1764608984451,38.69675793,2743.3,2743.0,0.001]
[1764608984654,40.45060493,2743.3,2743.0,0.001]
[1764608985350,40.00005893,2743.3,2743.0,0.001]
[1764608985546,23.13561193,2743.3,2743.0,0.001]
[1764608985872,40.00005893,2743.3,2743.0,0.001]
[1764608986153,22.41323221,2743.0,2742.9,0.001]
[1764608986481,26.73437566,2743.0,2742.9,0.001]
[1764608986628,27.18757566,2743.0,2742.9,0.001]
[1764608987357,33.68557566,2743.0,2742.9,0.001]
[1764608987544,1.13109811,2742.8,2742.7,0.001]
[1764608987722,1.13109811,2742.8,2742.5,0.001]
[1764608987723,21.18243,2742.7,2742.5,0.001]
[1764608987924,22.67684515,2742.3,2742.2,0.001]
[1764608988158,21.95125104,2742.0,2741.9,0.001]
[1764608988324,23.16302547,2742.0,2741.9,0.001]
[1764608988538,22.99178848,2742.0,2741.9,0.001]
[1764608988739,28.92257148,2742.0,2741.9,0.001]
[1764608989156,29.15126977,2742.0,2741.9,0.001]
[1764608990286,29.15126977,2742.0,2740.5,0.001]
[1764608990287,21.18243,2741.1,2740.5,0.001]
[1764608990439,3.51949521,2740.9,2740.5,0.001]
[1764608990638,3.51949521,2740.9,2740.8,0.4575]
[1764608990639,0.82529821,2740.9,2740.8,0.4575]
[1764608990839,1.31159411,2740.9,2740.8,0.9425]
[1764608991858,1.67491115,2740.9,2740.8,0.486]
[1764608992366,2.2072434,2740.9,2740.8,0.001]
[1764608992704,15.26250604,2740.9,2740.8,0.001]
[1764608992906,8.23549979,2740.9,2740.8,0.001]
[1764608993065,4.58706315,2740.9,2740.8,0.001]
[1764608993263,8.78479979,2740.9,2740.8,0.001]
[1764608993462,1.49441515,2740.6,2740.5,0.001]
[1764608993673,23.16364515,2740.6,2740.5,0.001]
[1764608993884,23.22614515,2740.6,2740.5,0.001]
[1764608994166,34.21617696,2740.6,2740.5,0.001]
[1764608994359,30.59210596,2740.6,2740.5,0.001]
[1764608994580,38.67845488,2740.6,2740.5,0.001]
[1764608998164,38.09245488,2740.6,2740.5,0.001]
[1764608998362,38.67845488,2740.6,2740.5,0.001]
[1764608998578,39.2510976,2740.6,2740.5,0.001]
[1764608999284,28.8313286,2740.6,2740.5,0.001]
[1764608999684,28.4983906,2740.6,2740.5,0.001]
[1764609000579,36.7310976,2740.6,2740.5,0.001]
[1764609000924,32.4765346,2740.6,2740.5,0.001]
[1764609001098,33.0625346,2740.6,2740.5,0.001]
[1764609001411,4.09475876,2740.6,2740.5,0.001]
[1764609001611,10.19341778,2740.6,2740.5,0.001]
[1764609001780,10.27551778,2740.6,2740.5,0.001]
[1764609001986,11.91981589,2740.6,2740.5,0.001]
[1764609002708,28.07962389,2740.6,2740.5,0.001]
[1764609002908,21.23589899,2740.6,2740.5,0.001]
[1764609003112,18.37929199,2740.6,2740.5,0.001]
[1764609003312,18.32929199,2740.6,2740.5,0.001]
[1764609003502,12.05422199,2740.6,2740.5,0.001]
[1764609003696,16.71053227,2740.6,2740.5,0.001]
[1764609003900,7.14311327,2740.6,2740.5,0.001]
[1764609004213,7.14311327,2740.6,2740.5,0.4895]
[1764609004214,2.90827725,2740.6,2740.5,0.4895]
[1764609004517,0.36331704,2741.0,2740.5,0.9672]
[1764609004817,5.8511891,2740.7,2740.6,0.4885]
[1764609005113,0.94931704,2740.7,2740.6,0.4777]
[1764609005316,0.94931704,2740.7,2740.5,0.001]
[1764609005317,1.67491115,2740.7,2740.5,0.001]
[1764609005525,0.53234892,2740.6,2740.5,0.001]
[1764609005683,5.13347604,2740.6,2740.5,0.001]
[1764609005886,8.58976115,2740.6,2740.5,0.4895]
[1764609006117,1.49441515,2740.6,2740.5,0.9672]
[1764609006482,1.13109811,2740.6,2740.5,0.9672]
[1764609006690,0.36331704,2740.7,2740.5,0.9672]
[1764609006890,0.57254224,2741.3,2740.6,0.9662]
[1764609007091,0.57254224,2741.3,2740.5,3.64993747]
[1764609007092,0.0997041,2740.9,2740.7,0.4777]
[1764609007404,0.002,2741.9,2741.2,0.6806]
[1764609007717,7.99367304,2741.4,2741.3,0.4885]
[1764609007900,7.04587304,2741.4,2741.3,0.9662]
[1764609008102,5.15724404,2741.4,2741.3,0.9662]
[1764609008283,0.94931704,2741.4,2741.3,0.9662]
[1764609008488,0.57237813,2741.8,2741.3,0.9662]
[1764609008684,0.94931704,2741.7,2741.3,0.9662]
[1764609008889,0.94931704,2741.7,2741.4,0.4777]
[1764609009198,9.32549215,2741.7,2741.6,0.4885]
[1764609009617,3.55367104,2741.7,2741.6,0.9662]
[1764609009818,2.96680904,2741.7,2741.6,0.9662]
[1764609010023,3.69240315,2741.7,2741.6,0.9662]
[1764609010206,0.36331704,2741.7,2741.6,0.9662]
[1764609010525,0.94931704,2741.7,2741.6,0.9662]
[1764609010725,0.57237813,2741.8,2741.6,0.9662]
[1764609010936,0.93569517,2741.8,2741.7,0.9662]
[1764609011304,0.57237813,2741.8,2741.7,0.9662]
[1764609011634,1.15837813,2741.8,2741.7,0.9662]
[1764609011786,20.89564128,2741.8,2741.2,0.6698]
[1764609011988,0.36331704,2741.4,2741.3,0.4777]
[1764609012188,0.94931704,2741.4,2741.3,0.4777]
[1764609012419,0.94931704,2741.4,2741.3,0.9662]
[1764609013592,0.72559411,2741.3,2740.8,0.4787]
[1764609013794,0.36331704,2741.0,2740.8,0.4787]
[1764609013995,0.94931704,2740.9,2740.8,0.4787]
[1764609014619,0.94931704,2740.9,2740.8,0.9672]
[1764609015220,0.94931704,2740.9,2740.8,0.4895]
[1764609016098,0.94931704,2740.9,2740.8,0.9672]
[1764609016521,5.85567621,2740.9,2740.8,0.4895]
[1764609016722,2.20723957,2740.9,2740.8,0.9672]
[1764609016925,4.08482015,2740.9,2740.8,0.9672]
[1764609017107,8.13876079,2740.9,2740.8,0.001]
[1764609017296,5.72885179,2740.9,2740.8,0.001]
[1764609017491,0.0997041,2740.6,2740.5,0.4787]
[1764609017695,7.27229821,2740.6,2740.5,0.4787]
[1764609018020,7.17259411,2740.6,2740.5,0.9672]
[1764609018594,7.27229821,2740.6,2740.5,0.9672]
[1764609021107,10.64847115,2740.6,2740.5,0.4895]
[1764609021608,7.75859411,2740.6,2740.5,0.9672]
[1764609021929,12.03919026,2740.6,2740.5,0.4895]
[1764609022130,12.03919026,2740.6,2740.5,0.9672]
[1764609022328,8.34810226,2740.6,2740.5,0.9672]
[1764609022503,12.17419026,2740.6,2740.5,0.9672]
[1764609022696,8.93410226,2740.6,2740.5,0.9672]
[1764609023328,8.34810226,2740.6,2740.5,0.9672]
[1764609023630,11.93141526,2740.6,2740.5,0.4895]
[1764609023831,11.93141526,2740.6,2740.5,0.9672]
[1764609024130,12.00575926,2740.6,2740.5,0.9672]
[1764609024333,12.00575926,2740.6,2740.5,0.001]
[1764609024628,16.13829928,2740.6,2740.5,0.001]
[1764609025629,13.50002626,2740.6,2740.5,0.001]
[1764609025830,15.51313228,2740.6,2740.5,0.001]
[1764609026023,15.51313228,2740.6,2740.5,0.4895]
[1764609026731,10.78933626,2740.6,2740.5,0.4895]
[1764609026933,8.75360626,2740.6,2740.5,0.4895]
[1764609027229,10.78431104,2740.6,2740.5,0.9672]
[1764609027436,11.50990515,2740.6,2740.5,0.9672]
[1764609027631,11.50990515,2740.6,2740.5,0.001]
[1764609027930,11.24629221,2740.6,2740.5,0.4895]
[1764609028228,11.69452551,2740.6,2740.5,0.9672]
[1764609028427,20.14418353,2740.6,2740.5,0.001]
[1764609029049,17.77449153,2740.6,2740.5,0.001]
[1764609029252,21.92163553,2740.6,2740.5,0.001]
[1764609029446,22.45043553,2740.6,2740.5,0.001]
[1764609029823,20.42607953,2740.6,2740.5,0.001]
[1764609030052,13.01479251,2740.6,2740.5,0.4725]
[1764609030233,9.81055551,2740.6,2740.5,0.4725]
[1764609030434,17.25651953,2740.6,2740.5,0.4725]
[1764609030630,13.60768351,2740.6,2740.5,0.4725]
[1764609030949,17.25651953,2740.6,2740.5,0.001]
[1764609031450,22.08162753,2740.6,2740.5,0.001]
[1764609031751,21.86262753,2740.6,2740.5,0.001]
[1764609032049,8.81905151,2740.6,2740.5,0.9278]
[1764609032288,13.05388753,2740.6,2740.5,0.001]
[1764609032456,9.40505151,2740.6,2740.5,0.9278]
[1764609033325,8.81905151,2740.6,2740.5,0.9278]
[1764609033525,6.447,2740.6,2740.5,0.9278]
[1764609033951,0.72559411,2740.6,2740.5,0.9278]
[1764609034151,0.82529821,2740.6,2740.5,0.4725]
[1764609034454,25.27424623,2740.6,2740.5,0.001]
[1764609034637,15.24468823,2740.6,2740.5,0.001]
[1764609034955,7.23576823,2740.6,2740.5,0.4725]
[1764609035157,7.82176823,2740.6,2740.5,0.4725]
[1764609035460,17.65708023,2740.6,2740.5,0.001]
[1764609035657,16.68693423,2740.6,2740.5,0.001]
[1764609035955,18.72069944,2740.6,2740.5,0.001]
[1764609036170,29.12473125,2740.6,2740.5,0.001]
[1764609036537,35.42371325,2740.6,2740.5,0.001]
[1764609037041,32.44939825,2740.6,2740.5,0.001]
[1764609037539,35.03563525,2740.6,2740.5,0.001]
[1764609037870,6.65391842,2740.6,2740.5,0.001]
[1764609038165,4.53618821,2740.6,2740.5,0.4725]
[1764609038354,3.61596821,2740.6,2740.5,0.9278]
[1764609038560,4.42611521,2740.6,2740.5,0.9278]
[1764609038761,3.84011521,2740.6,2740.5,0.9278]
[1764609038956,4.42611521,2740.6,2740.5,0.9278]
[1764609039467,5.23378769,2740.6,2740.5,0.9278]
[1764609039678,8.88262371,2740.6,2740.5,0.4725]
[1764609039978,5.23378769,2740.6,2740.5,0.4725]
[1764609040382,5.23378769,2740.6,2740.5,0.9278]
[1764609040586,5.73069169,2740.6,2740.5,0.001]
[1764609040744,13.66839271,2740.6,2740.5,0.001]
[1764609040940,14.69496292,2740.6,2740.5,0.001]
[1764609041140,7.39128092,2740.6,2740.5,0.001]
[1764609041379,28.57371092,2740.6,2740.5,0.001]
[1764609042865,11.06639292,2740.6,2740.5,0.001]
[1764609043258,11.15779292,2740.6,2740.5,0.001]
[1764609043610,11.61179292,2740.6,2740.5,0.001]
[1764609043815,21.70338592,2740.6,2740.5,0.001]
[1764609044896,28.57371092,2740.6,2740.5,0.001]
[1764609048017,27.58220692,2740.6,2740.5,0.001]
[1764609048222,10.23533681,2740.6,2740.5,0.001]
[1764609048422,10.64084081,2740.6,2740.5,0.001]
[1764609048632,11.36643492,2740.6,2740.5,0.001]
[1764609048927,16.50618792,2740.6,2740.5,0.001]
[1764609049727,7.39128092,2740.6,2740.5,0.001]
[1764609049892,22.86391392,2740.6,2740.5,0.001]
[1764609050798,28.57371092,2740.6,2740.5,0.001]
[1764609051171,28.00114071,2740.6,2740.5,0.001]
[1764609051656,27.32652171,2740.6,2740.5,0.001]
[1764609052230,25.32375871,2740.6,2740.5,0.001]
[1764609052430,16.12045971,2740.6,2740.5,0.001]
[1764609052637,14.44521071,2740.6,2740.5,0.001]
[1764609052857,17.29619571,2740.6,2740.5,0.001]
[1764609053036,8.89897171,2740.6,2740.5,0.001]
[1764609053242,9.07946771,2740.6,2740.5,0.4725]
[1764609053443,9.48497171,2740.6,2740.5,0.4725]
[1764609053758,9.07946771,2740.6,2740.5,0.9278]
[1764609053929,15.94532571,2740.6,2740.5,0.9278]
[1764609054130,15.64633071,2740.6,2740.5,0.4725]
[1764609054660,15.23740371,2740.6,2740.5,0.4725]
[1764609054885,15.23740371,2740.6,2740.5,0.001]
[1764609054886,16.47936671,2740.6,2740.5,0.001]
[1764609055168,13.48946971,2740.6,2740.5,0.001]
[1764609055676,13.16645371,2740.6,2740.5,0.001]
[1764609056071,14.94849471,2740.6,2740.5,0.001]
[1764609056376,13.45071471,2740.6,2740.5,0.001]
[1764609056573,9.70802571,2740.6,2740.5,0.001]
[1764609056938,27.45574071,2740.6,2740.5,0.001]
[1764609057351,25.43400271,2740.6,2740.5,0.001]
[1764609058064,26.35403871,2740.6,2740.5,0.001]
[1764609058266,20.77693371,2740.6,2740.5,0.001]
[1764609058469,20.07559371,2740.6,2740.5,0.001]
[1764609058845,20.52959371,2740.6,2740.5,0.001]
[1764609059055,23.60047971,2740.6,2740.5,0.001]
[1764609059350,23.20257971,2740.6,2740.5,0.001]
[1764609059556,21.26660371,2740.6,2740.5,0.001]
[1764609060161,23.02156871,2740.6,2740.5,0.001]
[1764609060472,17.34036171,2740.6,2740.5,0.001]
[1764609060773,17.79436171,2740.6,2740.5,0.001]
[1764609060978,17.34036171,2740.6,2740.5,0.001]
[1764609061139,22.68702371,2740.6,2740.5,0.001]
[1764609061347,22.00962371,2740.6,2740.5,0.001]
[1764609061543,3.16273221,2740.6,2740.5,0.9641]
[1764609061880,15.10622423,2740.6,2740.5,0.9641]
[1764609062046,11.50713423,2740.6,2740.5,0.9641]
[1764609062663,14.75292123,2740.6,2740.5,0.9641]
[1764609062867,6.447,2740.6,2740.5,0.9641]
[1764609063075,6.5467041,2740.6,2740.5,0.4663]
[1764609063281,23.66113323,2740.6,2740.5,0.9641]
[1764609063597,7.17259411,2740.6,2740.5,0.9641]
[1764609063780,7.75859411,2740.6,2740.5,0.9641]
[1764609064277,7.75859411,2740.6,2740.5,1.42543172]
[1764609064278,7.17259411,2740.6,2740.5,1.42543172]
[1764609064447,0.447,2740.6,2740.5,1.42543172]
[1764609064948,0.447,2740.6,2740.5,0.9641]
[1764609065449,0.81031704,2740.6,2740.5,0.9641]
[1764609065643,1.53591115,2740.6,2740.5,0.9641]
[1764609066474,0.81031704,2740.6,2740.5,0.9641]
[1764609068047,7.62259411,2740.6,2740.5,0.9641]
[1764609068448,6.897,2740.6,2740.5,0.9641]
[1764609068674,7.62259411,2740.6,2740.5,0.9641]
[1764609068982,7.98591115,2740.6,2740.5,0.9641]
[1764609069152,11.63474717,2740.6,2740.5,0.9641]
[1764609069349,13.47082815,2740.6,2740.5,0.9641]
[1764609069551,17.11966417,2740.6,2740.5,0.9641]
[1764609069861,10.83070615,2740.6,2740.5,0.9641]
[1764609070060,6.897,2740.6,2740.5,0.9641]
[1764609070483,7.62259411,2740.6,2740.5,1.42541335]
[1764609070685,7.98591115,2740.6,2740.5,0.9641]
[1764609070994,1.17259411,2740.6,2740.5,0.9641]
[1764609072583,1.27229821,2740.6,2740.5,0.9641]
[1764609073090,1.17259411,2740.6,2740.5,4.61306916]
[1764609073695,1.17259411,2740.6,2740.5,0.9641]
[1764609074196,0.447,2740.6,2740.5,4.61306916]
[1764609074366,0.002,2740.8,2740.5,9.08825382]
[1764609074561,0.002,2741.4,2740.5,9.08825382]
[1764609074562,0.002,2741.4,2741.1,3.64817044]
[1764609074795,0.002,2741.4,2740.7,3.64866836]
[1764609074796,0.002,2741.4,2741.3,0.659]
[1764609074982,0.002,2741.4,2741.3,1.1568]
[1764609076473,0.36531704,2741.4,2741.3,0.659]
[1764609076800,1.67691115,2741.4,2741.3,0.9631]
[1764609076969,4.77281415,2741.4,2741.3,0.4653]
[1764609077293,0.72759411,2741.4,2741.3,0.9631]
[1764609077481,1.31359411,2741.4,2741.3,0.9631]
[1764609077884,1.41329821,2741.4,2741.3,0.9631]
[1764609078601,1.67691115,2741.4,2741.3,0.9631]
[1764609079569,0.72759411,2741.4,2741.3,0.9631]
[1764609080196,0.72759411,2741.4,2741.3,1.443582]
[1764609080398,0.72759411,2741.4,2741.3,5.09148627]
[1764609080586,0.72759411,2741.4,2741.3,1.443582]
[1764609080792,0.72759411,2741.4,2741.3,5.09148627]
[1764609080991,0.72759411,2741.4,2741.3,1.443582]
[1764609081171,0.72759411,2741.4,2741.3,0.9631]
[1764609081367,0.72759411,2741.4,2741.3,4.61100427]
[1764609081666,0.002,2741.4,2741.3,4.61100427]
[1764609082488,0.002,2741.4,2741.3,0.9631]
[1764609082689,0.002,2741.4,2741.3,4.61100427]
[1764609082895,0.002,2741.4,2741.3,5.45627818]
[1764609083399,0.002,2741.4,2741.3,1.80837391]
[1764609083699,0.36531704,2741.4,2741.3,1.80837391]
[1764609083903,0.002,2741.4,2741.3,5.45627818]
[1764609093880,0.002,2741.7,2741.4,0.405504]
[1764609094081,0.002,2741.9,2741.6,0.4818]
[1764609094310,0.002,2741.9,2741.4,1.80292953]
[1764609094311,0.002,2741.9,2741.8,0.4818]
[1764609094609,0.002,2741.9,2741.8,0.9688]
[1764609095508,0.002,2742.2,2741.9,0.4818]
[1764609095712,0.1809,2743.6,2742.1,0.487]
[1764609096011,0.1809,2742.9,2742.1,0.0878]
[1764609096189,0.4717,2742.2,2741.9,0.0878]
[1764609096387,0.83501704,2742.2,2741.9,0.0878]
[1764609096713,0.36331704,2742.2,2741.9,0.0878]
[1764609096907,0.36331704,2742.3,2741.9,0.0878]
[1764609097535,0.1809,2742.9,2742.2,0.4818]
[1764609097816,0.1809,2742.9,2741.9,1.36174783]
[1764609097817,0.1809,2742.9,2741.9,4.22184179]
[1764609097992,0.6753,2742.9,2742.4,0.4818]
[1764609098581,0.1809,2742.9,2742.4,0.4818]
[1764609098786,0.002,2742.8,2742.4,0.4818]
[1764609099810,0.002,2742.8,2742.4,4.12824107]